bitfinex-derivatives/quotes_SOLF0:USTF0_20240902
["timestamp","ask_amount","ask_price","bid_price","bid_amount"]
[1725310966591,7.31429099,135.01,134.99,3.704]
[1725310966887,7.31429099,135.01,134.98,0.04810432]
[1725310968391,7.31429099,135.01,135.0,3.7038]
[1725310969689,7.31429099,135.01,134.99,3.7041]
[1725310970385,7.31429099,135.01,134.98,0.04810432]
[1725310971791,3.7519443,135.0,134.98,0.04810432]
[1725310972093,3.704,135.0,134.98,0.04810432]
[1725310972585,11.01799099,135.01,134.98,0.04810432]
[1725310972786,7.31429099,135.01,134.98,0.04810432]
[1725310977088,3.7045,134.98,134.92,35.56]
[1725310977480,3.7045,134.98,134.93,3.7056]
[1725310978082,3.76085308,134.97,134.94,0.053986]
[1725310978288,0.05595308,134.97,134.94,0.053986]
[1725310978588,2.7936,134.96,134.94,0.053986]
[1725310978991,6.4987,134.96,134.94,0.053986]
[1725310979193,2.7936,134.96,134.94,0.053986]
[1725310980186,6.4986,134.96,134.94,0.053986]
[1725310980382,2.7936,134.96,134.94,0.053986]
[1725310980582,2.7936,134.96,134.88,35.56]
[1725310981089,3.7052,134.95,134.88,35.56]
[1725310981295,2.7936,134.96,134.9,35.56]
[1725310981493,0.04991021,134.94,134.92,3.75889602]
[1725310981892,0.04991021,134.94,134.93,3.7058]
[1725310985492,0.04991021,134.94,134.92,0.05289602]
[1725310986598,3.7858466,134.93,134.92,0.05289602]
[1725310986801,1.3493,134.93,134.78,12.77633259]
[1725310987006,35.56,134.88,134.81,3.7088]
[1725310987199,35.56,134.9,134.79,35.56]
[1725310987398,1.4127,134.92,134.81,35.56]
[1725310987805,0.05296548,134.88,134.85,0.04301608]
[1725310988908,35.56,134.86,134.77,35.56]
[1725310989209,3.7087,134.83,134.78,3.7099]
[1725310989412,1.3493,134.85,134.78,3.7099]
[1725310989704,1.3493,134.85,134.79,3.7095]
[1725310990018,0.05541827,134.83,134.79,3.7095]
[1725310990305,0.05541827,134.83,134.77,35.56]
[1725310991112,0.05541827,134.83,134.81,35.56]
[1725310991303,0.05564995,134.83,134.79,35.56]
[1725310991505,0.05301701,134.82,134.81,3.709]
[1725310991704,0.05614067,134.83,134.81,3.709]
[1725310992106,0.05614067,134.83,134.81,35.56]
[1725310992501,5.0761,134.91,134.85,3.7078]
[1725310992704,5.0761,134.91,134.84,35.56]
[1725310992905,1.3695,134.91,134.84,35.56]
[1725310993512,1.3695,134.91,134.86,3.7075]
[1725310993708,0.04860065,134.89,134.86,3.75829119]
[1725310994212,0.04860065,134.89,134.87,3.7073]
[1725310995608,0.04860065,134.89,134.86,0.05079119]
[1725310997107,0.04860065,134.89,134.88,3.7071]
[1725310997617,0.04860065,134.89,134.86,0.05079119]
[1725310997915,0.04860065,134.89,134.87,3.7074]
[1725310998810,0.04860065,134.89,134.86,0.05079119]
[1725311000612,0.04860065,134.89,134.86,3.75849119]
[1725311000818,0.04860065,134.89,134.78,35.56]
[1725311000819,35.60860065,134.89,134.78,35.56]
[1725311001021,35.56,134.89,134.78,35.56]
[1725311001207,3.7073,134.88,134.78,35.56]
[1725311001407,35.56,134.89,134.78,35.56]
[1725311001613,35.56,134.89,134.83,3.7085]
[1725311001815,0.05028395,134.87,134.83,3.7085]
[1725311002016,0.05028395,134.87,134.7,20.19205029]
[1725311002017,35.56,134.85,134.7,9.05585029]
[1725311002220,0.05041537,134.79,134.7,0.3174]
[1725311002517,0.05573639,134.76,134.7,39.57716271]
[1725311002823,0.05573639,134.76,134.7,35.8774]
[1725311003219,0.05573639,134.76,134.75,3.7107]
[1725311005623,0.05573639,134.76,134.7,35.6692]
[1725311005920,0.05573639,134.76,134.68,35.56]
[1725311006121,0.0529234,134.73,134.72,3.7114]
[1725311006419,0.05603454,134.74,134.68,35.56]
[1725311006621,0.05603454,134.74,134.67,1.408]
[1725311006817,0.05603454,134.74,134.66,35.56]
[1725311007016,3.8154944,134.74,134.65,1.4268]
[1725311007213,1.4131,134.77,134.62,35.56]
[1725311007214,0.05167928,134.71,134.62,35.56]
[1725311007424,35.56,134.72,134.58,71.54150191]
[1725311007425,0.05035804,134.68,134.58,98.03268389]
[1725311007718,0.04848509,134.64,134.6,35.56]
[1725311007917,35.56,134.72,134.6,35.56]
[1725311007918,3.7118,134.71,134.65,3.7133]
[1725311008116,0.05327906,134.69,134.65,3.7133]
[1725311008513,0.05327906,134.69,134.55,9.0914278]
[1725311008714,0.04682437,134.63,134.58,35.56]
[1725311009030,0.05209199,134.62,134.61,3.7146]
[1725311009215,0.05655011,134.63,134.58,35.56]
[1725311009524,0.04780436,134.62,134.58,35.56]
[1725311009724,5.0396,134.68,134.63,3.7139]
[1725311010024,0.05055523,134.67,134.63,3.7139]
[1725311010429,3.7118,134.72,134.66,3.7132]
[1725311010727,1.4294,134.79,134.68,35.56]
[1725311011526,0.05487614,134.75,134.72,0.05062488]
[1725311012326,0.05487614,134.75,134.73,3.7113]
[1725311012529,0.05487614,134.75,134.72,0.05062488]
[1725311014433,0.05487614,134.75,134.73,3.7111]
[1725311014627,0.05487614,134.75,134.72,0.05062488]
[1725311015033,0.05487614,134.75,134.74,3.711]
[1725311015533,1.4174,134.81,134.77,3.7099]
[1725311015832,1.4174,134.81,134.72,35.56]
[1725311016033,1.4174,134.81,134.77,3.71]
[1725311016233,1.4174,134.81,134.72,35.56]
[1725311016735,0.04861012,134.78,134.75,0.05018325]
[1725311016926,0.04861012,134.78,134.76,3.7102]
[1725311017228,0.04861012,134.78,134.75,0.05018325]
[1725311017621,0.04861012,134.78,134.76,3.7102]
[1725311017929,0.04861012,134.78,134.75,0.05018325]
[1725311020335,0.04861012,134.78,134.75,3.76078325]
[1725311021029,3.75851012,134.78,134.75,0.05018325]
[1725311021233,35.60861012,134.78,134.75,0.05018325]
[1725311021937,3.7104,134.77,134.75,0.05018325]
[1725311023033,0.04861012,134.78,134.75,0.05018325]
[1725311023426,3.75871012,134.78,134.75,0.05018325]
[1725311023625,0.04861012,134.78,134.75,0.05018325]
[1725311024036,3.7102,134.77,134.75,0.05018325]
[1725311028038,0.04861012,134.78,134.75,0.05018325]
[1725311028434,3.7103,134.77,134.75,0.05018325]
[1725311028634,0.04861012,134.78,134.75,0.05018325]
[1725311028938,3.7240279,134.76,134.68,35.56]
[1725311029140,35.56,134.78,134.68,35.56]
[1725311029332,35.56,134.78,134.66,36.917]
[1725311030041,0.05252099,134.73,134.71,0.05629735]
[1725311030236,0.0552199,134.73,134.71,0.05629735]
[1725311031339,0.0552199,134.73,134.72,3.7115]
[1725311031940,5.0963,134.79,134.74,3.7109]
[1725311032335,1.3864,134.79,134.71,35.56]
[1725311032538,36.9913,134.82,134.71,35.56]
[1725311032539,3.7094,134.8,134.71,35.56]
[1725311032738,38.4332,134.82,134.71,35.56]
[1725311032943,0.05033455,134.78,134.75,0.04918807]
[1725311033135,0.05033455,134.78,134.75,3.75978807]
[1725311035241,0.05033455,134.78,134.76,3.7104]
[1725311035542,0.05033455,134.78,134.75,0.04918807]
[1725311037045,0.05033455,134.78,134.75,3.75968807]
[1725311037749,3.76033455,134.78,134.75,0.04918807]
[1725311038058,0.05033455,134.78,134.75,0.04918807]
[1725311038440,3.7103,134.77,134.75,0.04918807]
[1725311038642,3.73803976,134.76,134.75,0.04918807]
[1725311038846,0.05033455,134.78,134.75,0.04918807]
[1725311039050,35.61033455,134.78,134.75,0.04918807]
[1725311039743,35.56,134.76,134.66,1.357]
[1725311039938,1.3816,134.75,134.66,1.357]
[1725311040138,3.7111,134.74,134.66,1.357]
[1725311040849,0.05215155,134.71,134.7,3.7119]
[1725311044051,1.4182,134.81,134.69,35.61334503]
[1725311044262,1.4182,134.81,134.69,35.56]
[1725311044652,3.7098,134.79,134.75,3.7106]
[1725311045161,0.05260434,134.78,134.76,0.04832455]
[1725311046554,0.05260434,134.78,134.76,3.75872455]
[1725311047364,0.05260434,134.78,134.77,3.7102]
[1725311047757,1.3733,134.86,134.77,35.56]
[1725311047961,2.7848,134.87,134.77,35.56]
[1725311048266,3.70854047,134.86,134.77,35.56]
[1725311048764,0.05145496,134.83,134.8,0.05713567]
[1725311049560,0.05145496,134.83,134.8,3.76633567]
[1725311049762,0.05145496,134.83,134.8,0.05713567]
[1725311050069,0.05145496,134.83,134.81,3.7089]
[1725311050363,0.05145496,134.83,134.8,0.05713567]
[1725311050565,0.05145496,134.83,134.81,3.7089]
[1725311050864,0.05145496,134.83,134.8,0.05713567]
[1725311051254,0.05145496,134.83,134.8,3.76633567]
[1725311052360,0.05145496,134.83,134.8,0.05713567]
[1725311053167,3.7088,134.82,134.8,0.05713567]
[1725311053465,0.05145496,134.83,134.8,0.05713567]
[1725311053657,3.7088,134.82,134.8,0.05713567]
[1725311053856,1.45235496,134.83,134.8,0.05713567]
[1725311054254,3.7091,134.81,134.8,0.05713567]
[1725311054665,1.45235496,134.83,134.8,0.05713567]
[1725311055164,0.05145496,134.83,134.8,0.05713567]
[1725311055567,0.05145496,134.83,134.81,3.7091]
[1725311055862,0.05145496,134.83,134.8,0.05713567]
[1725311056266,0.05145496,134.83,134.82,3.7088]
[1725311056565,1.3899,134.91,134.81,35.56]
[1725311056766,1.4288,134.9,134.81,35.56]
[1725311056967,35.56,134.88,134.8,1.3505]
[1725311057163,35.56,134.88,134.73,1.3638]
[1725311057368,3.7081,134.85,134.81,3.7089]
[1725311057561,0.05093406,134.84,134.82,0.05121418]
[1725311058362,0.05093406,134.84,134.83,3.7085]
[1725311059057,3.7069,134.89,134.82,0.05121418]
[1725311059262,3.7072,134.88,134.82,0.05121418]
[1725311059467,35.56,134.88,134.82,0.05121418]
[1725311060070,0.05534263,134.86,134.82,3.75981418]
[1725311060770,3.76314263,134.86,134.82,3.75981418]
[1725311060971,0.05534263,134.86,134.82,0.05121418]
[1725311061470,3.708,134.85,134.82,0.05121418]
[1725311063171,35.61534263,134.86,134.82,0.05121418]
[1725311063471,35.56,134.84,134.82,0.05121418]
[1725311063671,5.057,134.83,134.82,0.05121418]
[1725311067979,0.05534263,134.86,134.82,0.05121418]
[1725311068166,0.05534263,134.86,134.85,3.708]
[1725311068572,0.05534263,134.86,134.82,35.61121418]
[1725311070374,0.05534263,134.86,134.84,3.7081]
[1725311071174,0.05534263,134.86,134.82,35.61121418]
[1725311071571,2.8286,134.91,134.84,35.56]
[1725311071572,3.70680705,134.91,134.84,35.56]
[1725311071975,3.7063,134.91,134.84,35.56]
[1725311072278,7.3248674,134.91,134.84,35.56]
[1725311072664,0.0559646,134.89,134.86,0.05584338]
[1725311073681,3.7628646,134.89,134.86,0.05584338]
[1725311074165,0.0559646,134.89,134.86,0.05584338]
[1725311075277,0.0559646,134.89,134.86,3.76324338]
[1725311075979,0.0559646,134.89,134.87,3.7074]
[1725311076778,0.0559646,134.89,134.86,3.76344338]
[1725311076973,0.0559646,134.89,134.86,0.05584338]
[1725311077473,3.7072,134.88,134.86,0.05584338]
[1725311077775,0.0559646,134.89,134.86,0.05584338]
[1725311078371,0.0559646,134.89,134.86,3.76334338]
[1725311078580,0.0559646,134.89,134.86,0.05584338]
[1725311079073,3.7629646,134.89,134.86,0.05584338]
[1725311079671,0.0559646,134.89,134.86,3.76344338]
[1725311081669,35.6159646,134.89,134.76,9.06685151]
[1725311081874,35.56,134.87,134.77,36.9374]
[1725311082282,3.7079,134.86,134.77,36.9374]
[1725311082870,0.05423854,134.83,134.8,0.05584408]
[1725311083074,0.05423854,134.83,134.81,3.7091]
[1725311083976,0.05423854,134.83,134.8,3.76514408]
[1725311084282,0.05423854,134.83,134.8,0.05584408]
[1725311084578,0.05423854,134.83,134.82,3.7088]
[1725311085274,3.70893592,134.89,134.79,39.21590875]
[1725311085482,36.8954,134.91,134.79,35.56]
[1725311085676,3.7074,134.88,134.79,35.56]
[1725311085870,3.65479629,134.87,134.83,3.7083]
[1725311086077,3.65479629,134.87,134.79,39.29007263]
[1725311086278,0.05404632,134.84,134.82,0.05659817]
[1725311086479,0.05404632,134.84,134.83,3.7084]
[1725311089489,0.05404632,134.84,134.82,0.05659817]
[1725311090472,0.05404632,134.84,134.82,3.76519817]
[1725311090877,0.05404632,134.84,134.82,0.05659817]
[1725311092285,3.76244632,134.84,134.82,0.05659817]
[1725311092984,0.05404632,134.84,134.82,0.05659817]
[1725311093490,0.05404632,134.84,134.82,3.76529817]
[1725311096086,0.05404632,134.84,134.82,0.05659817]
[1725311098079,0.05404632,134.84,134.83,3.7085]
[1725311098879,0.05404632,134.84,134.82,3.76529817]
[1725311099384,0.05404632,134.84,134.82,0.05659817]
[1725311100389,6.42089688,134.91,134.83,35.56]
[1725311100587,1.4188,134.95,134.85,35.56]
[1725311100778,3.64626744,134.92,134.83,35.56]
[1725311100984,3.7065,134.91,134.86,3.7075]
[1725311101181,3.76604212,134.9,134.83,35.56]
[1725311101380,35.56,134.94,134.83,35.56]
[1725311101589,0.05065505,134.9,134.87,0.05013925]
[1725311101782,3.68171889,134.9,134.87,0.05013925]
[1725311102283,0.05065505,134.9,134.87,0.05013925]
[1725311103490,35.56,134.89,134.78,35.56]
[1725311103688,1.4127,134.88,134.79,2.21096358]
[1725311103992,2.8697,134.88,134.78,40.78371693]
[1725311104183,3.7079,134.86,134.78,40.78371693]
[1725311104386,0.05470216,134.83,134.81,0.05698872]
[1725311104990,0.05470216,134.83,134.81,3.76578872]
[1725311105191,0.05470216,134.83,134.81,0.05698872]
[1725311105494,0.05470216,134.83,134.81,3.76598872]
[1725311105799,0.05470216,134.83,134.81,0.05698872]
[1725311106691,0.05470216,134.83,134.82,35.56]
[1725311106994,1.4457,134.92,134.82,37.76816769]
[1725311107194,3.62004163,134.91,134.84,35.56]
[1725311107500,3.62004163,134.91,134.86,3.7075]
[1725311107799,3.75130197,134.92,134.87,3.7072]
[1725311107990,0.04762568,134.9,134.87,0.04745678]
[1725311108490,0.04762568,134.9,134.88,3.7071]
[1725311108695,0.04762568,134.9,134.88,35.56]
[1725311109490,0.04762568,134.9,134.89,3.7069]
[1725311112396,1.377,134.98,134.93,3.7055]
[1725311112602,1.4088,134.98,134.91,35.56]
[1725311113294,42.87429099,135.01,134.91,35.56]
[1725311113295,0.05716731,134.96,134.91,35.56]
[1725311113489,0.05716731,134.96,134.95,3.7049]
[1725311114900,0.05716731,134.96,134.95,39.2649]
[1725311116503,7.31429099,135.01,134.99,3.7039]
[1725311116703,7.31429099,135.01,134.95,35.56]
[1725311117005,7.31429099,135.01,135.0,3.7038]
[1725311117199,7.31429099,135.01,134.95,35.56]
[1725311117398,7.31429099,135.01,134.93,39.18766845]
[1725311117597,0.05035896,134.98,134.97,3.7047]
[1725311118302,0.05035896,134.98,134.96,35.60781933]
[1725311118303,0.05035896,134.98,134.96,0.04781933]
[1725311119702,3.7047,134.97,134.96,0.04781933]
[1725311119904,3.7047,134.97,134.88,35.56]
[1725311119905,2.6904,134.97,134.88,35.56]
[1725311120404,2.6904,134.97,134.9,3.7065]
[1725311120808,3.7053,134.95,134.9,3.7065]
[1725311121008,0.05503534,134.94,134.91,0.05546516]
[1725311122600,3.76063534,134.94,134.91,0.05546516]
[1725311122804,0.05503534,134.94,134.91,0.05546516]
[1725311124000,3.706,134.92,134.91,0.05546516]
[1725311124203,0.05503534,134.94,134.84,35.56]
[1725311124400,39.17604261,134.95,134.83,2.8895]
[1725311124606,35.56,134.93,134.85,3.7079]
[1725311124800,35.56,134.93,134.83,38.4495]
[1725311124801,35.56,134.93,134.83,35.56]
[1725311124998,35.56,134.92,134.81,35.56]
[1725311125197,0.04933876,134.88,134.85,0.05631598]
[1725311125404,3.7076,134.87,134.85,0.05631598]
[1725311125709,0.04933876,134.88,134.85,0.05631598]
[1725311125914,1.37523876,134.88,134.85,0.05631598]
[1725311126915,3.7081,134.85,134.81,3.709]
[1725311127108,1.3259,134.88,134.79,35.56]
[1725311127309,35.56,134.87,134.77,35.56]
[1725311128020,3.75581813,134.83,134.81,0.05078155]
[1725311128225,0.04796734,134.83,134.74,35.56]
[1725311128520,35.56,134.79,134.67,1.3379]
[1725311128712,1.3259,134.78,134.68,2.21542086]
[1725311128915,1.3259,134.78,134.67,40.39851619]
[1725311128916,35.56,134.77,134.67,35.56]
[1725311129316,35.56,134.77,134.71,0.04868252]
[1725311129317,0.04799043,134.73,134.71,0.04868252]
[1725311131220,3.75929043,134.73,134.71,0.04868252]
[1725311133019,0.04799043,134.73,134.71,0.04868252]
[1725311139125,0.04799043,134.73,134.71,3.76028252]
[1725311139628,0.04799043,134.73,134.71,0.04868252]
[1725311140232,0.04799043,134.73,134.71,3.76028252]
[1725311140830,0.04799043,134.73,134.72,3.7115]
[1725311146335,3.6296846,134.8,134.71,35.60868252]
[1725311146636,260.56,134.83,134.71,35.56]
[1725311146637,6.524,134.81,134.71,35.56]
[1725311146828,6.61108637,134.81,134.73,35.56]
[1725311147131,2.8149,134.81,134.73,35.56]
[1725311147334,0.0567412,134.78,134.77,3.71]
[1725311147539,0.0567412,134.78,134.76,0.05478228]
[1725311148432,0.0567412,134.78,134.69,35.56]
[1725311148433,39.33761966,134.78,134.69,35.56]
[1725311148629,35.56,134.78,134.69,35.56]
[1725311149036,2.8149,134.81,134.68,35.56]
[1725311149333,35.56,134.79,134.68,35.56]
[1725311149535,0.05649034,134.75,134.72,0.05107711]
[1725311150228,3.76719034,134.75,134.72,0.05107711]
[1725311151338,3.76957328,134.74,134.72,0.05107711]
[1725311151533,3.76719034,134.75,134.72,0.05107711]
[1725311152134,3.7113,134.73,134.72,0.05107711]
[1725311153033,1.4341,134.74,134.72,0.05107711]
[1725311153735,5.1452,134.74,134.72,0.05107711]
[1725311154041,1.4341,134.74,134.69,3.7123]
[1725311154232,3.7115,134.73,134.64,40.76519443]
[1725311154539,3.7115,134.73,134.68,3.7125]
[1725311154932,0.04766685,134.72,134.69,0.04755223]
[1725311155336,35.60766685,134.72,134.69,0.04755223]
[1725311155735,1.3711,134.71,134.69,0.04755223]
[1725311156436,5.0831,134.71,134.69,0.04755223]
[1725311161441,0.04766685,134.72,134.69,0.04755223]
[1725311161845,0.04766685,134.72,134.71,3.7118]
[1725311162335,0.04766685,134.72,134.7,3.712]
[1725311162538,0.04766685,134.72,134.69,0.04755223]
[1725311162840,28.56766685,134.72,134.69,0.04755223]
[1725311163038,32.27936685,134.72,134.69,0.04755223]
[1725311163337,28.52,134.7,134.69,0.04755223]
[1725311163543,28.52,134.7,134.6,31.3754]
[1725311163738,7.43986045,134.69,134.64,3.7136]
[1725311163935,28.52,134.67,134.54,9.09914741]
[1725311164133,36.02048515,134.67,134.62,3.7143]
[1725311164538,0.04955272,134.66,134.63,0.05507878]
[1725311165953,35.66,134.64,134.63,0.05507878]
[1725311166344,1.3581,134.65,134.63,0.05507878]
[1725311166755,37.0181,134.65,134.63,0.05507878]
[1725311166945,37.0181,134.65,134.54,35.66]
[1725311167144,35.66,134.61,134.5,35.66]
[1725311167658,35.66,134.64,134.52,35.66]
[1725311168049,39.3738,134.64,134.59,3.7149]
[1725311168252,35.66,134.62,134.6,0.04786956]
[1725311168554,3.715,134.6,134.54,3.7163]
[1725311168753,35.66,134.62,134.52,35.66]
[1725311168956,35.66,134.62,134.57,3.7154]
[1725311169444,0.05337578,134.61,134.58,0.04686118]
[1725311170051,0.05337578,134.61,134.58,3.76226118]
[1725311170448,0.05337578,134.61,134.58,0.04686118]
[1725311170650,3.76817578,134.61,134.58,0.04686118]
[1725311170851,35.66,134.6,134.58,0.04686118]
[1725311172146,0.05337578,134.61,134.58,0.04686118]
[1725311172346,3.76817578,134.61,134.58,0.04686118]
[1725311172655,0.05337578,134.61,134.58,0.04686118]
[1725311172953,3.76797578,134.61,134.58,0.04686118]
[1725311173149,0.05337578,134.61,134.58,0.04686118]
[1725311173560,0.05337578,134.61,134.58,3.76206118]
[1725311173855,0.05337578,134.61,134.58,0.04686118]
[1725311174059,0.05337578,134.61,134.59,3.7149]
[1725311174445,0.05337578,134.61,134.6,3.7148]
[1725311175154,0.05337578,134.61,134.58,0.04686118]
[1725311175360,35.71337578,134.61,134.58,0.04686118]
[1725311175562,39.42797578,134.61,134.58,0.04686118]
[1725311175860,35.71337578,134.61,134.58,0.04686118]
[1725311176061,35.66,134.59,134.48,1.435]
[1725311176362,3.7161,134.56,134.51,3.7171]
[1725311176549,3.7161,134.56,134.48,6.53688932]
[1725311176745,3.7161,134.56,134.51,3.7171]
[1725311176953,0.05527746,134.55,134.52,0.0217116]
[1725311178151,35.71527746,134.55,134.52,0.0217116]
[1725311178561,3.7166,134.54,134.52,0.0217116]
[1725311179259,3.7168,134.53,134.52,0.0217116]
[1725311179458,35.66,134.53,134.43,2.8356]
[1725311179655,35.66,134.5,134.43,2.8356]
[1725311179862,39.32257896,134.5,134.39,39.43850404]
[1725311180055,35.66,134.48,134.4,1.36616393]
[1725311180259,35.66,134.48,134.43,3.7193]
[1725311180466,0.05577848,134.47,134.39,2.7251]
[1725311180761,0.05577848,134.47,134.4,1.3662185]
[1725311180954,0.05577848,134.47,134.39,2.7251]
[1725311181155,0.05577848,134.47,134.42,3.7198]
[1725311182250,3.7187,134.46,134.39,2.7251]
[1725311182451,0.05116406,134.44,134.39,2.7251]
[1725311183068,0.05116406,134.44,134.36,35.66]
[1725311183252,0.05116406,134.44,134.36,5.24373371]
[1725311183454,0.05116406,134.44,134.4,3.7204]
[1725311183655,0.05116406,134.44,134.36,5.24373371]
[1725311183954,0.05116406,134.44,134.39,3.7206]
[1725311184656,0.05116406,134.44,134.4,3.7204]
[1725311184851,0.05116406,134.44,134.36,3.78783371]
[1725311185054,7.45203102,134.43,134.38,3.7208]
[1725311185256,0.05618307,134.42,134.38,3.7208]
[1725311185463,0.05618307,134.42,134.35,67.71973276]
[1725311185659,3.77608307,134.42,134.37,3.7211]
[1725311186062,3.77608307,134.42,134.35,67.71973276]
[1725311186257,3.7201,134.41,134.36,3.7214]
[1725311186663,35.71618307,134.42,134.3,35.66]
[1725311186866,0.04812443,134.37,134.35,3.7217]
[1725311187059,0.05500109,134.37,134.35,3.7217]
[1725311187456,0.05500109,134.37,134.36,3.7215]
[1725311187661,0.04977481,134.38,134.36,3.7215]
[1725311187957,0.04977481,134.38,134.31,3.67291058]
[1725311188156,39.3805,134.4,134.3,35.66]
[1725311188157,0.05262123,134.36,134.3,35.66]
[1725311188359,0.05262123,134.36,134.34,3.7219]
[1725311189258,0.05262123,134.36,134.3,39.35820508]
[1725311189458,35.71262123,134.36,134.27,2.7753]
[1725311189658,35.66,134.36,134.27,2.7753]
[1725311189860,0.04700124,134.33,134.27,2.7753]
[1725311190363,0.04700124,134.33,134.3,3.723]
[1725311190765,0.04700124,134.33,134.27,2.7753]
[1725311191065,0.04700124,134.33,134.32,3.7226]
[1725311192264,0.04700124,134.33,134.31,3.7228]
[1725311193667,0.04700124,134.33,134.3,3.723]
[1725311193969,0.04700124,134.33,134.27,2.7753]
[1725311194170,0.04700124,134.33,134.27,6.53525534]
[1725311195369,35.66,134.38,134.28,35.66]
[1725311195773,35.66,134.4,134.28,35.66]
[1725311195968,39.3805,134.4,134.34,3.7218]
[1725311196174,35.66,134.4,134.34,3.7218]
[1725311196370,0.05081549,134.38,134.36,0.04700124]
[1725311196572,0.05081549,134.38,134.36,3.76840124]
[1725311197171,225.0,134.51,134.36,0.04700124]
[1725311197370,35.66,134.46,134.36,35.66]
[1725311197572,39.39353181,134.46,134.41,3.72]
[1725311198363,0.0530912,134.45,134.42,0.05410374]
[1725311199364,35.66,134.44,134.42,0.05410374]
[1725311199572,35.66,134.43,134.42,0.05410374]
[1725311199770,35.66,134.43,134.31,35.66]
[1725311200079,35.66,134.39,134.31,3.67291527]
[1725311200276,35.66,134.35,134.23,7.4502]
[1725311200588,35.66,134.35,134.26,35.66]
[1725311200872,0.04761826,134.3,134.28,0.04371299]
[1725311201074,35.66,134.38,134.34,3.7218]
[1725311201288,35.66,134.38,134.3,3.66882392]
[1725311201578,35.66,134.38,134.26,35.66]
[1725311201781,35.66,134.38,134.27,1.36757052]
[1725311201970,0.04857314,134.34,134.31,0.05532193]
[1725311202170,0.04857314,134.34,134.33,3.7223]
[1725311203274,0.04857314,134.34,134.32,3.7225]
[1725311203581,35.70857314,134.34,134.31,0.05532193]
[1725311203966,35.70857314,134.34,134.31,3.77802193]
[1725311204269,35.70857314,134.34,134.31,0.05532193]
[1725311205078,0.04857314,134.34,134.31,0.05532193]
[1725311205479,0.04857314,134.34,134.33,3.7223]
[1725311206473,0.04857314,134.34,134.31,3.77802193]
[1725311206679,0.04857314,134.34,134.31,0.05532193]
[1725311206977,35.70857314,134.34,134.31,0.05532193]
[1725311207183,0.04857314,134.34,134.31,0.05532193]
[1725311207580,0.04857314,134.34,134.32,3.7226]
[1725311209187,0.04857314,134.34,134.33,3.7223]
[1725311209781,0.04857314,134.34,134.32,3.7225]
[1725311209982,0.04857314,134.34,134.31,0.05532193]
[1725311210489,0.04857314,134.34,134.33,3.7223]
[1725311212486,2.7537,134.39,134.36,3.7214]
[1725311212487,1.411,134.39,134.36,3.7214]
[1725311212789,35.66,134.47,134.31,1.3422]
[1725311212790,39.31929895,134.43,134.33,35.66]
[1725311212992,3.65929895,134.43,134.41,3.7199]
[1725311213290,3.65929895,134.43,134.35,35.66]
[1725311213485,0.05174764,134.4,134.39,3.7207]
[1725311214582,0.05174764,134.4,134.38,0.05630633]
[1725311214583,0.05174764,134.4,134.38,3.77720633]
[1725311216300,0.05174764,134.4,134.38,0.05630633]
[1725311217207,0.05174764,134.4,134.39,3.7207]
[1725311220005,1.3264,134.46,134.37,35.66]
[1725311220407,2.8431,134.52,134.36,1.3782]
[1725311220408,2.8431,134.52,134.4,35.66]
[1725311220705,37.0599,134.51,134.4,35.66]
[1725311221207,0.05304236,134.47,134.44,0.05087663]
[1725311222000,39.3789,134.46,134.44,0.05087663]
[1725311222307,1.3999,134.45,134.44,0.05087663]
[1725311222505,5.119,134.45,134.36,1.3782]
[1725311222807,1.3999,134.45,134.36,37.0382]
[1725311223004,1.3999,134.45,134.4,3.7202]
[1725311223507,0.05401639,134.44,134.41,0.05010131]
[1725311226010,35.71401639,134.44,134.41,0.05010131]
[1725311227411,0.05401639,134.44,134.41,0.05010131]
[1725311228115,0.05401639,134.44,134.41,3.77010131]
[1725311229615,0.05401639,134.44,134.43,3.7195]
[1725311229817,38.4688,134.52,134.42,39.30147012]
[1725311230015,38.4688,134.52,134.42,35.66]
[1725311230512,38.4688,134.52,134.43,3.72665724]
[1725311230814,0.04972062,134.49,134.46,0.05383251]
[1725311231012,0.04972062,134.49,134.46,39.41977927]
[1725311231317,37.0053,134.56,134.46,39.36594676]